[Event "WYCC 2018 G16"]
[Site "Halkidiki"]
[Date "2018.10.22"]
[Round "4"]
[White "Solozhenkina, Elizaveta"]
[Black "Peycheva, Gergana"]
[Result "1/2-1/2"]
[ECO "E20"]
[WhiteElo "2276"]
[BlackElo "2152"]
[Annotator "NA"]
[PlyCount "83"]
[EventDate "2018.10.20"]
[EventType "swiss"]
[EventCountry "GRE"]
[SourceTitle "playchess.com"]
[Source "ChessBase"]
[SourceQuality "1"]
[TimeControl "40/5400+30:1800+30"]

1. d4 {[%emt 0:00:00]} Nf6 {[%emt 0:00:00]} 2. c4 {[%emt 0:01:07]} e6 {[%emt 0:01:04]} 3. Nc3 {[%emt 0:01:58]} Bb4 {[%emt 0:01:16]} 4. f3 {[%emt 0:01:15]} b6 {[%emt 0:05:51]} 5. e4 {[%emt 0:02:29] E20: Nimzo-Indian: 4 g3 and 4 f3} Bxc3+ {[%emt 0:01:38]} 6. bxc3 {[%emt 0:00:07]} Nc6 {[%emt 0:01:14]} 7. Be3 $146 {[%emt 0:15:03]} ({Predecessor:} 7. Bd3 Ba6 8. Nh3 Na5 9. Qe2 d6 10. Bg5 h6 11. Bh4 g5 12. Bf2 e5 13. Be3 {0-1 (59) Volkov,S (2659)-Savchenko,B (2577) Krasnoyarsk 2007}) 7... Ba6 {[%emt 0:03:26]} 8. e5 {[%emt 0:02:11]} Ng8 {[%emt 0:02:02]} 9. Bd3 {[%emt 0:02:14]} Na5 {[%emt 0:01:50]} 10. Qe2 {[%emt 0:02:22]} d6 {[%emt 0:12:22]} 11. f4 {[%emt 0:03:07]} Qd7 {[%emt 0:02:55]} 12. Nf3 {[%emt 0:01:51]} Ne7 {[%emt 0:03:15]} 13. Nd2 {[%emt 0:04:35]} d5 {[%emt 0:05:51]} 14. O-O {[%emt 0:15:48]} dxc4 {[%emt 0:07:44]} 15. Nxc4 {[%emt 0:00:28]} Bxc4 {[%emt 0:00:31]} 16. Bxc4 {[%emt 0:00:05]} Nxc4 {[%emt 0:00:12]} 17. Qxc4 {[%emt 0:00:06]} Nd5 {[%emt 0:00:17]} 18. Qd3 {[%emt 0:04:33]} O-O {[%emt 0:05:43]} 19. c4 {[%emt 0:03:38]} Nxe3 {[%emt 0:01:09]} 20. Qxe3 {[%emt 0:00:05]} Rad8 {[%emt 0:06:05]} 21. Rad1 {[%emt 0:01:55]} Qa4 {[%emt 0:07:21]} 22. Qb3 {[%emt 0:09:05]} Qxb3 {[%emt 0:01:38]} 23. axb3 {[%emt 0:00:04]} Rd7 {[%emt 0:00:04]} 24. Rd2 $11 {[%emt 0:00:59]} Rfd8 {[%emt 0:00:21]} 25. Rfd1 {[%emt 0:00:06]} c6 {[%emt 0:00:52]} 26. Kf2 {[%emt 0:00:42]} a5 {[%emt 0:02:57]} 27. Ke3 {[%emt 0:00:29]} f5 {[%emt 0:04:31]} 28. exf6 {[%emt 0:02:56]} gxf6 {[%emt 0:00:15]} 29. g4 {[%emt 0:02:52]} Kf7 {[%emt 0:02:33]} 30. Ke4 {[%emt 0:03:34]} Re8 {[%emt 0:03:12]} 31. Rd3 {[%emt 0:02:01]} Rd6 {[%emt 0:01:14]} 32. R1d2 {[%emt 0:05:03]} Red8 {[%emt 0:01:20]} 33. h3 {[%emt 0:01:17]} R6d7 {[%emt 0:01:01]} 34. f5 {[%emt 0:03:46]} exf5+ {[%emt 0:02:07]} 35. Kxf5 {[%emt 0:03:41]} Re8 {[%emt 0:02:46]} 36. Kf4 {[%emt 0:00:34]} Kg6 {[%emt 0:00:48]} 37. d5 {[%emt 0:03:12]} cxd5 {[%emt 0:00:44]} 38. cxd5 {[%emt 0:01:10]} Rd6 {[%emt 0:02:37]} 39. Re3 {[%emt 0:00:40]} Red8 {[%emt 0:00:23]} 40. Ke4 {[%emt 0:00:00]} Re8+ {[%emt 0:00:00]} 41. Kf4 {[%emt 0:09:09]} Red8 {[%emt 0:04:33]} 42. Ke4 {[%emt 0:02:54]} 1/2-1/2

[Event "WYCC 2018 G16"]
[Site "Halkidiki"]
[Date "2018.10.22"]
[Round "4"]
[White "Beydullayeva, Govhar"]
[Black "Salonika, Saina"]
[Result "1/2-1/2"]
[ECO "E69"]
[WhiteElo "2202"]
[BlackElo "2093"]
[Annotator "NA"]
[PlyCount "133"]
[EventDate "2018.10.20"]
[EventType "swiss"]
[EventCountry "GRE"]
[SourceTitle "playchess.com"]
[Source "ChessBase"]
[SourceQuality "1"]
[TimeControl "40/5400+30:1800+30"]

1. d4 {[%emt 0:00:00]} Nf6 2. Nf3 {[%emt 0:00:00]} g6 {[%emt 0:00:00]} 3. g3 {[%emt 0:00:05]} Bg7 {[%emt 0:00:00]} 4. Bg2 {[%emt 0:00:03]} O-O {[%emt 0:00:00]} 5. O-O {[%emt 0:00:54]} d6 {[%emt 0:00:11]} 6. c4 {[%emt 0:00:32]} Nbd7 {[%emt 0:00:09]} 7. Nc3 {[%emt 0:05:39]} e5 {[%emt 0:00:16]} 8. e4 {[%emt 0:00:33]} c6 {[%emt 0:00:07]} 9. h3 {[%emt 0:00:47]} Qb6 {[%emt 0:00:05]} 10. d5 {[%emt 0:12:04]} cxd5 {[%emt 0:03:27]} 11. cxd5 {[%emt 0:01:08]} Nc5 {[%emt 0:01:30]} 12. Qe2 {[%emt 0:03:04]} Bd7 {[%emt 0:01:46]} 13. Be3 {[%emt 0:02:16]} a5 {[%emt 0:01:44]} 14. Rfc1 {[%emt 0:02:39] LiveBook: 6 Games} Rfc8 {[%emt 0:03:11]} 15. Nd2 {[%emt 0:02:23]} a4 {[%emt 0:03:59] E69: King's Indian: Fianchetto: 6...Nbd7 7 0-0 e5 8 e4 c6 9 h3} 16. Rab1 {[%emt 0:15:54]} (16. b4 Qxb4 17. Rab1 Nb3 18. axb3 Rxc3 19. Rxc3 Qxc3 20. bxa4 Rxa4 21. Rxb7 Qc8 22. Rb6 Bxh3 23. Qd1 Bxg2 24. Kxg2 {½-½ (42) Grachev,B (2668)-Markus,R (2624) Sibenik 2010}) 16... Qb4 {[%emt 0:32:40]} 17. Kh2 $146 {[%emt 0:16:38]} ({Predecessor:} 17. a3 Qa5 {½-½ (17) Akesson,J (2360)-Olsson,A (2426) Gothenburg 2004}) 17... Rab8 {[%emt 0:05:49]} 18. a3 {[%emt 0:04:01]} Qa5 {[%emt 0:00:43]} 19. Bxc5 {[%emt 0:02:52]} dxc5 {[%emt 0:01:02]} 20. Nc4 {[%emt 0:00:39]} Qc7 {[%emt 0:05:45]} 21. d6 {[%emt 0:00:55]} Qc6 {[%emt 0:01:09]} 22. Nxe5 {[%emt 0:01:19]} Qxd6 {[%emt 0:00:12]} 23. Nxd7 {[%emt 0:02:47]} Qxd7 {[%emt 0:01:04]} 24. e5 {[%emt 0:02:05]} Ne8 {[%emt 0:01:56]} 25. Rd1 {[%emt 0:06:39]} Qe7 {[%emt 0:04:39]} 26. f4 {[%emt 0:03:35]} Nc7 {[%emt 0:05:32]} 27. Nxa4 {[%emt 0:01:19]} b5 $16 {[%emt 0:00:43]} 28. Nc3 {[%emt 0:00:18]} f6 {[%emt 0:03:08]} 29. exf6 {[%emt 0:01:31]} Qxe2 {[%emt 0:00:10]} 30. Nxe2 {[%emt 0:00:14]} Bxf6 {[%emt 0:00:07]} 31. Rd7 {[%emt 0:01:22]} b4 {[%emt 0:01:10]} 32. a4 {[%emt 0:07:12]} c4 {[%emt 0:01:37]} 33. Rc1 {[%emt 0:01:08]} c3 {[%emt 0:04:33]} 34. bxc3 {[%emt 0:00:05]} bxc3 {[%emt 0:02:18]} 35. Nxc3 {[%emt 0:01:02]} Na6 {[%emt 0:00:24]} 36. Ne2 {[%emt 0:01:52]} Rxc1 {[%emt 0:00:21]} 37. Nxc1 {[%emt 0:00:03]} Nc5 {[%emt 0:00:18]} 38. Rd6 {[%emt 0:02:13]} Bb2 {[%emt 0:01:19]} 39. Nd3 {[%emt 0:00:34]} Nxa4 {[%emt 0:01:34]} 40. Ne5 {[%emt 0:00:00]} Bxe5 {[%emt 0:00:00]} 41. fxe5 {[%emt 0:01:12]} Nb6 {[%emt 0:07:34]} 42. h4 {[%emt 0:03:54]} Kf8 {[%emt 0:05:18]} 43. e6 {[%emt 0:12:05]} Ke7 {[%emt 0:00:42]} 44. Rc6 {[%emt 0:00:05]} Rb7 {[%emt 0:00:40]} 45. Kh3 {[%emt 0:01:03]} Kf6 {[%emt 0:02:49]} 46. Kg4 {[%emt 0:01:35]} Rb8 {[%emt 0:04:20]} 47. Kf4 {[%emt 0:03:25]} Nc8 {[%emt 0:01:23]} 48. g4 {[%emt 0:01:03]} h6 {[%emt 0:03:48]} 49. e7+ {[%emt 0:01:56]} Kxe7 {[%emt 0:00:07]} 50. Rxg6 {[%emt 0:00:05]} Rb6 {[%emt 0:03:32]} 51. Rg7+ {[%emt 0:01:24]} Kf6 {[%emt 0:00:26]} 52. Rh7 {[%emt 0:01:34]} Rb4+ {[%emt 0:02:54]} 53. Kg3 {[%emt 0:00:04]} Kg6 {[%emt 0:01:14]} 54. Rd7 {[%emt 0:01:32]} Kf6 {[%emt 0:01:53]} 55. Rh7 {[%emt 0:02:59]} Kg6 {[%emt 0:00:06]} 56. Rc7 {[%emt 0:02:16]} Nd6 {[%emt 0:00:32]} 57. Rc6 {[%emt 0:02:08]} Rd4 {[%emt 0:00:04]} 58. Kf3 {[%emt 0:00:41]} Kg7 {[%emt 0:01:16]} 59. Rc7+ {[%emt 0:00:53]} Nf7 {[%emt 0:01:16]} 60. Kg3 {[%emt 0:00:18]} Kf6 {[%emt 0:00:50]} 61. Rc6+ {[%emt 0:00:40]} Kg7 {[%emt 0:01:48]} 62. Re6 {[%emt 0:00:18]} Rd3+ {[%emt 0:02:46]} 63. Kf4 {[%emt 0:01:03]} Rd4+ {[%emt 0:00:50]} 64. Kg3 {[%emt 0:00:32]} Rd3+ {[%emt 0:00:05]} 65. Bf3 {[%emt 0:00:15]} Rd4 {[%emt 0:00:59]} 66. Re1 {[%emt 0:00:55]} Kf6 {[%emt 0:00:30]} 67. Ra1 {[%emt 0:00:24]} 1/2-1/2

[Event "WYCC 2018 G16"]
[Site "Halkidiki"]
[Date "2018.10.22"]
[Round "4"]
[White "Getman, Tatyana"]
[Black "Jarocka, Liwia"]
[Result "1/2-1/2"]
[ECO "D37"]
[WhiteElo "2195"]
[BlackElo "1990"]
[Annotator "NA"]
[PlyCount "133"]
[EventDate "2018.10.20"]
[EventType "swiss"]
[EventCountry "GRE"]
[SourceTitle "playchess.com"]
[Source "ChessBase"]
[SourceQuality "1"]
[TimeControl "40/5400+30:1800+30"]

1. d4 {[%emt 0:00:00]} Nf6 {[%emt 0:00:00]} 2. c4 {[%emt 0:00:00]} e6 {[%emt 0:00:00]} 3. Nf3 {[%emt 0:00:00]} d5 {[%emt 0:00:00]} 4. Nc3 {[%emt 0:00:00]} dxc4 {[%emt 0:00:46]} 5. e4 {[%emt 0:04:27]} b5 {[%emt 0:00:37] D24: Queen's Gambit Accepted: 3 Nf3 Nf6 4 Nc3} 6. e5 {[%emt 0:00:25]} Nd5 {[%emt 0:00:11]} 7. Nxb5 {[%emt 0:00:09]} Nb6 {[%emt 0:00:10]} 8. Bg5 {[%emt 0:03:54]} (8. Be2 Nc6 9. O-O Be7 10. Qd2 O-O 11. Qf4 Rb8 12. Nc3 f5 13. Qg3 {1-0 (38) Ding,L (2804)-Duda,J (2739) Batumi 2018}) 8... Qd7 $146 {[%emt 0:00:51]} ({Predecessor:} 8... Be7 9. Qd2 Nc6 10. Rc1 Ba6 11. Bxe7 Qxe7 12. a4 Nxa4 13. Bxc4 {1-0 (27) Stupak,K (2542)-Cornette,M (2593) Rochefort 2017}) 9. Nc3 {[%emt 0:02:00]} Nc6 {[%emt 0:00:45]} 10. Be2 {[%emt 0:02:00]} Bb7 {[%emt 0:00:19]} 11. O-O {[%emt 0:01:24]} h6 {[%emt 0:00:14]} 12. Be3 {[%emt 0:01:59]} Be7 {[%emt 0:00:21]} 13. Rc1 {[%emt 0:02:25]} Rb8 {[%emt 0:15:54]} 14. Ne1 {[%emt 0:04:43]} Nb4 {[%emt 0:02:03]} 15. Qd2 {[%emt 0:08:48]} c5 {[%emt 0:08:37]} 16. Rd1 {[%emt 0:03:59]} Rd8 {[%emt 0:06:57]} 17. Qc1 {[%emt 0:06:23]} cxd4 {[%emt 0:10:57]} 18. Rxd4 {[%emt 0:00:46]} Qc7 {[%emt 0:05:20]} 19. Rxd8+ {[%emt 0:05:38]} Bxd8 {[%emt 0:02:45]} 20. Bd4 {[%emt 0:04:10]} Ba6 {[%emt 0:12:27]} 21. Qd2 {[%emt 0:09:19]} Be7 {[%emt 0:07:02]} 22. Bf3 {[%emt 0:09:42]} O-O {[%emt 0:00:34]} 23. a3 {[%emt 0:02:40]} Nc6 {[%emt 0:00:39]} 24. Bxc6 {[%emt 0:02:05]} Qxc6 {[%emt 0:00:09]} 25. Qf4 {[%emt 0:03:11]} Bb7 {[%emt 0:01:38]} 26. Qg4 {[%emt 0:01:46]} Rd8 {[%emt 0:00:53]} 27. Be3 $15 {[%emt 0:03:16]} Kh8 {[%emt 0:02:05]} 28. Nf3 {[%emt 0:01:40]} Qc7 {[%emt 0:08:44]} 29. Ne2 {[%emt 0:03:47]} Bc5 {[%emt 0:02:15]} 30. Bf4 {[%emt 0:02:08]} Nd5 {[%emt 0:01:38]} 31. Bc1 {[%emt 0:00:31]} Ne7 {[%emt 0:01:17]} 32. Nc3 {[%emt 0:07:06]} Ng6 {[%emt 0:00:58]} 33. Qg3 {[%emt 0:00:33]} Bxf3 {[%emt 0:03:47]} 34. Qxf3 {[%emt 0:00:07]} Nxe5 {[%emt 0:02:13]} 35. Qg3 {[%emt 0:00:08]} Rd3 {[%emt 0:00:56]} 36. Qf4 {[%emt 0:01:25]} Bd6 {[%emt 0:00:32]} 37. Nb5 {[%emt 0:00:53]} Qb8 {[%emt 0:00:55]} 38. Nxd6 {[%emt 0:00:46]} Qxd6 {[%emt 0:00:02]} 39. h3 {[%emt 0:01:20]} Rd1 {[%emt 0:00:53]} 40. Rxd1 {[%emt 0:00:00]} Qxd1+ 41. Kh2 {[%emt 0:00:14]} Nd3 {[%emt 0:01:47]} 42. Qb8+ {[%emt 0:00:19]} Kh7 {[%emt 0:00:04]} 43. Be3 {[%emt 0:00:34]} Qb3 {[%emt 0:05:59]} 44. Qxa7 {[%emt 0:01:57]} Qxb2 {[%emt 0:00:51]} 45. Bd4 {[%emt 0:01:20]} Qe2 {[%emt 0:10:20]} 46. Qxf7 {[%emt 0:01:22]} e5 {[%emt 0:02:17]} 47. Qf5+ {[%emt 0:06:48]} Kg8 {[%emt 0:00:42]} 48. Bc3 {[%emt 0:02:23]} Qa2 {[%emt 0:03:51]} 49. Qc8+ {[%emt 0:12:26]} Kh7 {[%emt 0:00:13]} 50. Qf8 {[%emt 0:00:23]} Qb3 {[%emt 0:03:07]} 51. Ba5 {[%emt 0:03:57]} Qb5 {[%emt 0:02:03]} 52. Qf5+ {[%emt 0:02:02]} Kh8 {[%emt 0:00:18]} 53. Bc3 {[%emt 0:01:35]} Qb3 {[%emt 0:00:36]} 54. Bd2 {[%emt 0:00:57]} Qc2 {[%emt 0:00:41]} 55. Be3 {[%emt 0:01:04]} Qb3 {[%emt 0:00:22]} 56. Qf8+ {[%emt 0:02:07]} Kh7 {[%emt 0:00:03]} 57. Qf5+ {[%emt 0:00:22]} Kh8 {[%emt 0:00:05]} 58. Qc8+ {[%emt 0:01:28]} Kh7 {[%emt 0:00:05]} 59. Kg3 {[%emt 0:00:22]} Qb5 {[%emt 0:00:17]} 60. Qf5+ {[%emt 0:00:48]} Kh8 {[%emt 0:00:11]} 61. Qf8+ {[%emt 0:00:40]} Kh7 {[%emt 0:00:04]} 62. Kg4 {[%emt 0:00:30]} Qc6 {[%emt 0:00:56]} 63. Qf5+ {[%emt 0:00:31]} Kh8 {[%emt 0:00:19]} 64. f3 {[%emt 0:01:00]} Ne1 {[%emt 0:02:11]} 65. Qf8+ {[%emt 0:00:27]} Kh7 {[%emt 0:00:04]} 66. Qf5+ {[%emt 0:00:06]} Kh8 {[%emt 0:00:04]} 67. Qf8+ {[%emt 0:00:58]} 1/2-1/2

[Event "WYCC 2018 G16"]
[Site "Halkidiki"]
[Date "2018.10.22"]
[Round "4"]
[White "Berdnyk, Mariia"]
[Black "De Silva, Tenara"]
[Result "1-0"]
[ECO "B09"]
[WhiteElo "2179"]
[BlackElo "1927"]
[Annotator "NA"]
[PlyCount "75"]
[EventDate "2018.10.20"]
[EventType "swiss"]
[EventCountry "GRE"]
[SourceTitle "playchess.com"]
[Source "ChessBase"]
[SourceQuality "1"]
[TimeControl "40/5400+30:1800+30"]

1. e4 {[%emt 0:00:00]} d6 {[%emt 0:00:00]} 2. d4 {[%emt 0:00:00]} g6 {[%emt 0:00:00]} 3. Nc3 {[%emt 0:00:00]} Bg7 {[%emt 0:00:00]} 4. f4 {[%emt 0:00:00]} Nf6 {[%emt 0:02:17]} 5. Bd3 {[%emt 0:00:03]} O-O {[%emt 0:00:29]} 6. Nf3 {[%emt 0:00:10]} Na6 {[%emt 0:02:04]} 7. O-O {[%emt 0:01:05]} c5 {[%emt 0:01:02]} 8. d5 {[%emt 0:00:08]} Bg4 {[%emt 0:01:08]} 9. h3 {[%emt 0:05:09]} Bxf3 {[%emt 0:00:32]} 10. Qxf3 {[%emt 0:00:24]} Nc7 {[%emt 0:00:18]} 11. Be3 {[%emt 0:07:24]} Rb8 {[%emt 0:02:12]} 12. a4 {[%emt 0:02:24]} a6 {[%emt 0:05:05]} 13. a5 {[%emt 0:10:26] B09: Pirc Defence: Austrian Attack} Nd7 {[%emt 0:10:29]} 14. Nd1 {[%emt 0:06:32] [#]} b5 $146 {[%emt 0:03:12]} ({Predecessor:} 14... e6 15. c4 b6 16. axb6 Rxb6 {0-1 (56) Sheng,J (2236)-Corrales Jimenez,F (2566) Orlando 2014}) 15. axb6 {[%emt 0:03:50]} Rxb6 {[%emt 0:00:13]} 16. c3 {[%emt 0:00:36]} Nb5 {[%emt 0:10:03]} 17. Bf2 {[%emt 0:04:30]} Qc7 {[%emt 0:04:30]} 18. Ne3 {[%emt 0:01:52]} Ra8 {[%emt 0:02:47]} 19. Bh4 {[%emt 0:01:41]} Bf6 {[%emt 0:05:09]} 20. Bxf6 {[%emt 0:00:29]} exf6 {[%emt 0:00:10]} 21. Nc4 {[%emt 0:09:04]} Rbb8 {[%emt 0:01:11]} 22. Rad1 {[%emt 0:02:53]} Nb6 {[%emt 0:02:12]} 23. Ne3 {[%emt 0:07:03]} Re8 {[%emt 0:09:27]} 24. Ng4 $18 {[%emt 0:06:37]} Kg7 {[%emt 0:02:26]} 25. e5 {[%emt 0:02:06]} f5 {[%emt 0:01:18]} 26. Nf6 {[%emt 0:00:31]} Re7 {[%emt 0:02:51]} 27. Bxb5 {[%emt 0:04:05]} axb5 {[%emt 0:00:12]} 28. g4 {[%emt 0:00:19]} fxg4 {[%emt 0:06:44]} 29. hxg4 {[%emt 0:04:12]} h6 {[%emt 0:02:01]} 30. exd6 {[%emt 0:02:15]} Qxd6 {[%emt 0:00:36]} 31. Ne4 {[%emt 0:00:03]} Qd8 {[%emt 0:04:08]} 32. f5 {[%emt 0:02:08]} Kh7 {[%emt 0:03:50]} 33. d6 {[%emt 0:02:49]} Rea7 {[%emt 0:01:23]} 34. fxg6+ {[%emt 0:00:16]} fxg6 {[%emt 0:00:35]} 35. d7 {[%emt 0:01:13]} Qe7 {[%emt 0:02:07]} 36. Nf6+ {[%emt 0:01:20]} Kg7 {[%emt 0:02:22]} 37. Rde1 {[%emt 0:00:26]} Qd8 {[%emt 0:02:23]} 38. Ne8+ {[%emt 0:00:10]} 1-0

[Event "WYCC 2018 G16"]
[Site "Halkidiki"]
[Date "2018.10.22"]
[Round "4"]
[White "Goltseva, Ekaterina"]
[Black "Srdanovic, Jovana"]
[Result "0-1"]
[ECO "D10"]
[WhiteElo "2169"]
[BlackElo "2072"]
[Annotator "NA"]
[PlyCount "124"]
[EventDate "2018.10.20"]
[EventType "swiss"]
[EventCountry "GRE"]
[SourceTitle "playchess.com"]
[Source "ChessBase"]
[SourceQuality "1"]
[TimeControl "40/5400+30:1800+30"]

1. d4 {[%emt 0:00:00]} d5 {[%emt 0:00:00]} 2. c4 {[%emt 0:00:00]} c6 {[%emt 0:00:00]} 3. cxd5 {[%emt 0:00:00]} cxd5 {[%emt 0:00:00]} 4. Bf4 {[%emt 0:00:00]} Nc6 {[%emt 0:00:42]} 5. e3 {[%emt 0:00:00]} Nf6 {[%emt 0:00:59]} 6. Nc3 {[%emt 0:00:16]} e6 {[%emt 0:04:38]} 7. Bd3 {[%emt 0:01:40]} Be7 {[%emt 0:01:24]} 8. h3 {[%emt 0:00:34]} Bd7 {[%emt 0:02:19]} 9. Nf3 {[%emt 0:00:59]} a6 {[%emt 0:03:07]} 10. O-O {[%emt 0:01:24]} O-O {[%emt 0:08:20]} 11. Rc1 {[%emt 0:02:39]} Rc8 {[%emt 0:17:17]} 12. Ne5 {[%emt 0:13:21]} Be8 {[%emt 0:07:51]} 13. Bg5 {[%emt 0:04:22] D13: Slav Defence: Exchange variation without ...Bf5} Nd7 {[%emt 0:02:21]} (13... h6 14. Bh4 Nd7 15. Nxc6 Rxc6 16. Bxe7 Qxe7 17. Na4 Nf6 18. Qb3 Rxc1 19. Rxc1 Bxa4 20. Qxa4 Qd6 {½-½ (20) Artemiev,V (2663)-Vitiugov,N (2721) Sochi 2016}) 14. Bxe7 $146 {[%emt 0:04:52]} ({Predecessor:} 14. Nxc6 Rxc6 15. Bxe7 Qxe7 16. f4 f5 17. a3 Qh4 18. Be2 Nf6 19. Qe1 Qh6 20. Na2 g5 21. Rxc6 Bxc6 {0-1 (35) Kuempers,U-Laengl,M Cattolica 1992}) 14... Nxe7 {[%emt 0:02:51]} 15. f4 {[%emt 0:10:12]} f6 {[%emt 0:04:23]} 16. Nf3 {[%emt 0:03:57]} Nb6 {[%emt 0:01:43]} 17. Nh4 {[%emt 0:11:49]} Nc6 {[%emt 0:03:37]} 18. Qe2 {[%emt 0:04:21]} Bf7 {[%emt 0:04:30]} 19. Nf3 {[%emt 0:05:11]} Qd7 {[%emt 0:04:40]} 20. Qf2 {[%emt 0:01:40]} Qe8 {[%emt 0:03:09]} 21. Rfe1 $11 {[%emt 0:04:25]} Bg6 {[%emt 0:05:13]} 22. e4 {[%emt 0:04:41]} Nb4 {[%emt 0:00:57]} 23. Bb1 {[%emt 0:05:04]} Qd7 {[%emt 0:03:32]} 24. Rcd1 {[%emt 0:08:34]} Rfe8 {[%emt 0:01:59]} 25. a3 {[%emt 0:00:43]} dxe4 {[%emt 0:00:56]} 26. Nxe4 {[%emt 0:02:29]} N4d5 {[%emt 0:03:02]} 27. Nh4 Bf7 28. g3 {[%emt 0:07:28]} Na4 {[%emt 0:01:41]} 29. Kh2 {[%emt 0:02:32]} Rc7 {[%emt 0:02:45]} 30. Rd2 {[%emt 0:00:37]} Rec8 {[%emt 0:00:29]} 31. Qf1 {[%emt 0:02:09]} Ne7 {[%emt 0:02:37]} 32. Qd3 {[%emt 0:01:31]} Ng6 {[%emt 0:01:37]} 33. Nf3 {[%emt 0:00:30]} Nf8 {[%emt 0:01:26]} 34. Ba2 {[%emt 0:01:18]} Rd8 {[%emt 0:02:52]} 35. Red1 {[%emt 0:00:47]} Ng6 {[%emt 0:03:06]} 36. b3 {[%emt 0:01:33]} Nb6 {[%emt 0:00:07]} 37. b4 {[%emt 0:00:14]} Nd5 {[%emt 0:00:11]} 38. Nc5 {[%emt 0:00:38]} Qc8 {[%emt 0:00:10]} 39. Qb3 {[%emt 0:01:18]} b6 {[%emt 0:00:28]} 40. Na4 {[%emt 0:00:00]} Nc3 {[%emt 0:00:00]} 41. Rc1 {[%emt 0:12:36]} Nxa2 {[%emt 0:03:48]} 42. Rxc7 {[%emt 0:02:47]} Qxc7 {[%emt 0:00:07]} 43. Qxa2 {[%emt 0:08:09]} Qc6 {[%emt 0:00:21]} 44. Qb3 {[%emt 0:00:26]} e5 {[%emt 0:00:56]} 45. d5 {[%emt 0:08:52]} Rxd5 {[%emt 0:00:17]} 46. Rc2 {[%emt 0:00:10]} Qb7 {[%emt 0:00:56]} 47. Qe3 {[%emt 0:00:15]} exf4 {[%emt 0:02:09]} 48. gxf4 {[%emt 0:00:05]} Rd6 49. Rd2 Re6 {[%emt 0:01:30]} 50. Rd8+ {[%emt 0:02:05]} Nf8 {[%emt 0:00:15]} 51. Qd3 {[%emt 0:00:21]} Qc7 52. Rd4 {[%emt 0:00:35]} Qc1 {[%emt 0:09:09]} 53. Nd2 {[%emt 0:00:27]} Re1 {[%emt 0:01:03]} 54. Qf3 {[%emt 0:00:30]} Rd1 55. Qg2 Qxa3 {[%emt 0:06:31]} 56. Nxb6 {[%emt 0:00:55]} Qe3 {[%emt 0:00:16]} 57. Re4 {[%emt 0:00:47]} Qxd2 {[%emt 0:00:13]} 58. Qxd2 {[%emt 0:00:25]} Rxd2+ {[%emt 0:00:04]} 59. Kg3 {[%emt 0:00:17]} h5 {[%emt 0:00:30]} 60. f5 {[%emt 0:00:39]} Nd7 {[%emt 0:00:40]} 61. Nc8 {[%emt 0:00:29]} Ne5 {[%emt 0:00:12]} 62. Nb6 {[%emt 0:00:36]} Rd3+ {[%emt 0:00:28]} 0-1

[Event "WYCC 2018 G16"]
[Site "Halkidiki"]
[Date "2018.10.22"]
[Round "4"]
[White "Bach, Ngoc Thuy Duong"]
[Black "Maltsevskaya, Aleksandra"]
[Result "0-1"]
[ECO "E97"]
[WhiteElo "2161"]
[BlackElo "2290"]
[Annotator "NA"]
[PlyCount "102"]
[EventDate "2018.10.20"]
[EventType "swiss"]
[EventCountry "GRE"]
[SourceTitle "playchess.com"]
[Source "ChessBase"]
[SourceQuality "1"]
[TimeControl "40/5400+30:1800+30"]

1. d4 {[%emt 0:00:00]} Nf6 {[%emt 0:00:00]} 2. c4 {[%emt 0:00:00]} g6 {[%emt 0:01:27]} 3. Nc3 {[%emt 0:00:00]} Bg7 {[%emt 0:00:07]} 4. e4 {[%emt 0:00:00]} d6 {[%emt 0:00:04]} 5. Nf3 {[%emt 0:00:00]} O-O {[%emt 0:00:08]} 6. Be2 {[%emt 0:00:35]} e5 {[%emt 0:00:11]} 7. O-O {[%emt 0:00:18]} Nc6 {[%emt 0:00:08]} 8. d5 {[%emt 0:00:13]} Ne7 {[%emt 0:00:08]} 9. b4 {[%emt 0:00:34]} Nh5 {[%emt 0:00:15]} 10. g3 {[%emt 0:00:08]} f5 {[%emt 0:00:05]} 11. Ng5 {[%emt 0:00:07]} Nf6 {[%emt 0:00:07]} 12. f3 {[%emt 0:02:01]} f4 {[%emt 0:00:20]} 13. Kg2 {[%emt 0:05:29]} c6 {[%emt 0:00:59] E97: King's Indian: Classical Main Line (6...e5 7 0-0 Nc6): 8 Be3 and 8 d5 Ne7, not 9 Ne1} (13... Ne8 14. c5 a5 15. b5 dxc5 16. Qb3 Nd6 17. Rd1 b6 18. Ne6 Bxe6 19. dxe6 Kh8 20. Bb2 g5 21. g4 {1-0 (40) Eljanov,P (2723)-Onischuk,V (2593) Kocaeli 2014}) 14. Qb3 {[%emt 0:03:29]} h6 {[%emt 0:06:13]} 15. Ne6 {[%emt 0:00:34]} Bxe6 {[%emt 0:00:07]} 16. dxe6 {[%emt 0:00:06] LiveBook: 3 Games} fxg3 {[%emt 0:00:43]} 17. hxg3 {[%emt 0:00:21]} Qc8 {[%emt 0:00:06]} 18. Rd1 {[%emt 0:12:33]} Rd8 {[%emt 0:03:25]} 19. Be3 {[%emt 0:02:38]} Qxe6 {[%emt 0:01:17]} 20. Rd2 {[%emt 0:02:52]} Kh7 {[%emt 0:05:59]} 21. Rad1 $146 {[%emt 0:02:38]} ({Predecessor:} 21. Rh1 Nh5 22. Rhd1 Nf6 23. Rh1 Nh5 {½-½ (23) Csiszar,Z (2304)-Katai,D (2211) Hungary 2007}) 21... Rd7 {[%emt 0:17:18]} 22. a4 {[%emt 0:09:44]} h5 {[%emt 0:15:14]} 23. Rh1 {[%emt 0:06:56]} Bh6 {[%emt 0:07:05]} 24. Nd1 {[%emt 0:03:04]} g5 {[%emt 0:07:47]} 25. Nf2 {[%emt 0:01:20]} Ng6 {[%emt 0:00:31]} 26. Nh3 {[%emt 0:01:31]} Rg8 {[%emt 0:10:05]} 27. Bxg5 {[%emt 0:05:56]} Nf4+ {[%emt 0:04:07]} 28. Nxf4 {[%emt 0:00:23]} exf4 {[%emt 0:00:07]} 29. gxf4 {[%emt 0:00:11]} Bxg5 {[%emt 0:01:38]} 30. fxg5 {[%emt 0:00:05]} Rxg5+ {[%emt 0:06:53]} 31. Kf1 {[%emt 0:00:51]} Qe5 {[%emt 0:00:04]} 32. Ke1 {[%emt 0:03:09]} Rdg7 {[%emt 0:02:02]} 33. Qe3 {[%emt 0:02:35]} Qg3+ {[%emt 0:00:33]} 34. Qf2 $15 {[%emt 0:00:46]} Qf4 {[%emt 0:00:11]} 35. Rh4 {[%emt 0:06:22]} Qe5 {[%emt 0:01:05]} 36. Qd4 {[%emt 0:02:08]} Rg1+ {[%emt 0:06:26]} 37. Bf1 {[%emt 0:00:12]} Qg5 {[%emt 0:00:07]} 38. Rhh2 {[%emt 0:00:28]} c5 {[%emt 0:01:31]} 39. bxc5 {[%emt 0:05:28]} dxc5 {[%emt 0:00:07]} 40. Qc3 {[%emt 0:00:00]} Rxf1+ {[%emt 0:00:00]} 41. Kxf1 {[%emt 0:01:30]} Qg1+ {[%emt 0:01:05]} 42. Ke2 {[%emt 0:00:05]} Qxh2+ {[%emt 0:00:04]} 43. Kd1 {[%emt 0:01:16]} Qf4 {[%emt 0:01:19]} 44. e5 {[%emt 0:01:34]} Nd7 {[%emt 0:06:29]} 45. Rd5 {[%emt 0:03:02]} Qf5 {[%emt 0:03:36]} 46. e6 {[%emt 0:01:41]} Qxe6 {[%emt 0:03:41]} 47. Rxh5+ {[%emt 0:00:11]} Kg8 {[%emt 0:00:03]} 48. Qd3 {[%emt 0:02:25]} Nf6 {[%emt 0:03:42]} 49. Qd8+ {[%emt 0:00:27]} Kf7 {[%emt 0:00:07]} 50. Qc7+ {[%emt 0:05:27]} Qd7+ {[%emt 0:00:23]} 51. Qxd7+ {[%emt 0:00:05]} Nxd7 {[%emt 0:00:04]} 0-1